[Event "Live Chess"]
[Site "Chess.com"]
[Date "2024.06.02"]
[Round "-"]
[White "JanMur7"]
[Black "Vladyslav2008"]
[Result "1-0"]
[WhiteElo "2293"]
[BlackElo "2274"]
[TimeControl "300"]
[EndTime "3:25:28 PDT"]
[Termination "JanMur7 won by checkmate"]

1. c4 {[%clk 0:04:58.7]} 1... Nf6 {[%clk 0:04:57.3]} 2. Nc3 {[%clk 0:04:57.7]}
2... e5 {[%clk 0:04:48.6]} 3. Nf3 {[%clk 0:04:54.3]} 3... Nc6 {[%clk 0:04:46.4]}
4. e4 {[%clk 0:04:51.9]} 4... Bc5 {[%clk 0:04:43.9]} 5. Nxe5 {[%clk 0:04:50]}
5... Nxe5 {[%clk 0:04:42.1]} 6. d4 {[%clk 0:04:48.4]} 6... Bb4 {[%clk
0:04:22.1]} 7. dxe5 {[%clk 0:04:45.6]} 7... Bxc3+ {[%clk 0:04:17.5]} 8. bxc3
{[%clk 0:04:42.9]} 8... Ng8 {[%clk 0:04:15.9]} 9. Qg4 {[%clk 0:04:35.2]} 9...
Kf8 {[%clk 0:04:13.4]} 10. Ba3+ {[%clk 0:04:33.9]} 10... d6 {[%clk 0:04:11.4]}
11. Qg3 {[%clk 0:04:33.2]} 11... h5 {[%clk 0:04:07.8]} 12. exd6 {[%clk
0:04:31.5]} 12... c5 {[%clk 0:03:57.1]} 13. d7 {[%clk 0:04:20.8]} 13... Bxd7
{[%clk 0:03:52.6]} 14. Bxc5+ {[%clk 0:04:18.7]} 14... Ne7 {[%clk 0:03:49]} 15.
Rd1 {[%clk 0:04:09.1]} 15... Rc8 {[%clk 0:03:46.4]} 16. Qd6 {[%clk 0:04:06.6]}
16... Ke8 {[%clk 0:03:27]} 17. Qxe7+ {[%clk 0:03:37.7]} 17... Qxe7 {[%clk
0:03:25.7]} 18. Bxe7 {[%clk 0:03:37.6]} 18... Kxe7 {[%clk 0:03:24.7]} 19. Be2
{[%clk 0:03:31.6]} 19... Be6 {[%clk 0:03:23.5]} 20. Rd4 {[%clk 0:03:29.7]} 20...
Rhd8 {[%clk 0:03:13.3]} 21. Kd2 {[%clk 0:03:17.4]} 21... Bxc4 {[%clk 0:03:07.4]}
22. Rb1 {[%clk 0:03:02.3]} 22... b6 {[%clk 0:02:59.8]} 23. Rxd8 {[%clk
0:02:50.8]} 23... Rxd8+ {[%clk 0:02:55.9]} 24. Ke3 {[%clk 0:02:50]} 24... Bxe2
{[%clk 0:02:47.8]} 25. Kxe2 {[%clk 0:02:49.9]} 25... Rc8 {[%clk 0:02:45.4]} 26.
Rb3 {[%clk 0:02:45.9]} 26... Kd6 {[%clk 0:02:40]} 27. Ra3 {[%clk 0:02:43.8]}
27... a5 {[%clk 0:02:38.1]} 28. Rb3 {[%clk 0:02:37.1]} 28... Kc5 {[%clk
0:02:36.7]} 29. a4 {[%clk 0:02:35.6]} 29... Re8 {[%clk 0:02:33.3]} 30. Ke3
{[%clk 0:02:27.2]} 30... f5 {[%clk 0:02:30.8]} 31. Rb5+ {[%clk 0:01:52.5]} 31...
Kc4 {[%clk 0:02:28.2]} 32. f3 {[%clk 0:01:45.5]} 32... fxe4 {[%clk 0:02:20.3]}
33. fxe4 {[%clk 0:01:45.4]} 33... Re6 {[%clk 0:02:16.4]} 34. e5 {[%clk
0:01:30.9]} 34... Kxc3 {[%clk 0:02:13.8]} 35. Ke4 {[%clk 0:01:29]} 35... Kc4
{[%clk 0:02:03.3]} 36. Kf5 {[%clk 0:01:25.4]} 36... Re8 {[%clk 0:02:00.8]} 37.
e6 {[%clk 0:01:22.3]} 37... Rf8+ {[%clk 0:01:56.7]} 38. Ke5 {[%clk 0:01:21.6]}
38... Rf1 {[%clk 0:01:52.9]} 39. e7 {[%clk 0:01:16.3]} 39... Ra1 {[%clk
0:01:48.7]} 40. Ke6 {[%clk 0:01:10.6]} 40... Re1+ {[%clk 0:01:46.5]} 41. Re5
{[%clk 0:01:09.4]} 41... Rxe5+ {[%clk 0:01:37.5]} 42. Kxe5 {[%clk 0:01:09.3]}
42... b5 {[%clk 0:01:36.4]} 43. e8=Q {[%clk 0:01:06.9]} 43... bxa4 {[%clk
0:01:33.8]} 44. Qxa4+ {[%clk 0:01:05.8]} 44... Kd3 {[%clk 0:01:33.6]} 45. Qxa5
{[%clk 0:01:05.3]} 45... Ke3 {[%clk 0:01:33.4]} 46. Qd8 {[%clk 0:01:03.3]} 46...
Kf2 {[%clk 0:01:31.9]} 47. Qg5 {[%clk 0:01:02.4]} 47... Kg1 {[%clk 0:01:30.6]}
48. Qxh5 {[%clk 0:01:01.5]} 48... g5 {[%clk 0:01:28.8]} 49. Qxg5 {[%clk
0:01:00.1]} 49... Kxh2 {[%clk 0:01:27.6]} 50. Qf4+ {[%clk 0:00:58.4]} 50... Kxg2
{[%clk 0:01:26.2]} 51. Qe3 {[%clk 0:00:57.1]} 51... Kh2 {[%clk 0:01:25.4]} 52.
Qf3 {[%clk 0:00:56.4]} 52... Kg1 {[%clk 0:01:23.3]} 53. Qe2 {[%clk 0:00:56.3]}
53... Kh1 {[%clk 0:01:23.2]} 54. Kf4 {[%clk 0:00:56.2]} 54... Kg1 {[%clk
0:01:22.2]} 55. Kg3 {[%clk 0:00:56.1]} 55... Kh1 {[%clk 0:01:21.3]} 56. Qg2#
{[%clk 0:00:56]} 1-0

[Event "Live Chess"]
[Site "Chess.com"]
[Date "2024.06.02"]
[Round "-"]
[White "upoe610"]
[Black "Dhaydon19"]
[Result "0-1"]
[WhiteElo "2133"]
[BlackElo "2629"]
[TimeControl "300"]
[EndTime "3:25:42 PDT"]
[Termination "Dhaydon19 won by resignation"]

1. c4 {[%clk 0:04:57.2]} 1... e6 {[%clk 0:04:59.6]} 2. g3 {[%clk 0:04:55.7]}
2... d5 {[%clk 0:04:57.6]} 3. Bg2 {[%clk 0:04:54.4]} 3... Nf6 {[%clk 0:04:56.8]}
4. Nf3 {[%clk 0:04:53.6]} 4... Be7 {[%clk 0:04:55.7]} 5. O-O {[%clk 0:04:52.2]}
5... O-O {[%clk 0:04:55.3]} 6. d4 {[%clk 0:04:50.8]} 6... b6 {[%clk 0:04:54.5]}
7. cxd5 {[%clk 0:04:35.2]} 7... Nxd5 {[%clk 0:04:52.1]} 8. Nc3 {[%clk
0:04:33.5]} 8... Nxc3 {[%clk 0:04:50.3]} 9. bxc3 {[%clk 0:04:32.6]} 9... Bb7
{[%clk 0:04:50]} 10. Qc2 {[%clk 0:04:31.7]} 10... Nd7 {[%clk 0:04:48.6]} 11. Ng5
{[%clk 0:04:29.7]} 11... Bxg5 {[%clk 0:04:45.1]} 12. Bxb7 {[%clk 0:04:28.7]}
12... Rb8 {[%clk 0:04:44.2]} 13. Be4 {[%clk 0:04:27.4]} 13... g6 {[%clk
0:04:40.6]} 14. Ba3 {[%clk 0:04:23.8]} 14... Be7 {[%clk 0:04:38.1]} 15. Bb2
{[%clk 0:04:21.7]} 15... Nf6 {[%clk 0:04:35.2]} 16. Bg2 {[%clk 0:04:20]} 16...
c5 {[%clk 0:04:34.3]} 17. dxc5 {[%clk 0:04:17.8]} 17... Bxc5 {[%clk 0:04:31.6]}
18. c4 {[%clk 0:04:17.7]} 18... Qe7 {[%clk 0:04:30.2]} 19. Qc3 {[%clk
0:04:15.9]} 19... Kg7 {[%clk 0:04:22.4]} 20. g4 {[%clk 0:04:14.8]} 20... g5
{[%clk 0:04:16.8]} 21. h4 {[%clk 0:04:13]} 21... h6 {[%clk 0:04:15.6]} 22. hxg5
{[%clk 0:04:12.4]} 22... hxg5 {[%clk 0:04:14]} 23. Qd2 {[%clk 0:04:07.9]} 23...
Kg6 {[%clk 0:04:10]} 24. Qd3+ {[%clk 0:04:06.1]} 24... Kg7 {[%clk 0:04:07.3]}
25. Be5 {[%clk 0:04:04.8]} 25... Rbd8 {[%clk 0:04:03.3]} 26. Qc3 {[%clk
0:04:02.7]} 26... Kg6 {[%clk 0:03:59.6]} 27. e3 {[%clk 0:04:01.9]} 27... Nxg4
{[%clk 0:03:55.9]} 28. Bg7 {[%clk 0:03:49.6]} 28... Rg8 {[%clk 0:03:51.9]} 29.
Be5 {[%clk 0:03:46.7]} 29... Nxe5 {[%clk 0:03:45.7]} 30. Qxe5 {[%clk 0:03:45.4]}
30... Qf6 {[%clk 0:03:42]} 31. Be4+ {[%clk 0:03:43.4]} 31... Kg7 {[%clk
0:03:40.9]} 32. Qg3 {[%clk 0:03:41.3]} 32... Rh8 {[%clk 0:03:37.4]} 33. f4
{[%clk 0:03:40]} 33... g4 {[%clk 0:03:21.4]} 34. Qxg4+ {[%clk 0:03:34.9]} 34...
Kf8 {[%clk 0:03:19]} 35. Kf2 {[%clk 0:03:30.1]} 35... Rg8 {[%clk 0:03:15.2]} 36.
Qf3 {[%clk 0:03:21.8]} 36... Rd2+ {[%clk 0:03:11.6]} 37. Ke1 {[%clk 0:03:20.7]}
37... Qc3 {[%clk 0:03:09.5]} 38. Rd1 {[%clk 0:03:13.5]} 38... Rc2+ {[%clk
0:03:07.4]} 0-1

[Event "Live Chess"]
[Site "Chess.com"]
[Date "2024.06.02"]
[Round "-"]
[White "LL220284LL"]
[Black "RockTroll"]
[Result "1-0"]
[WhiteElo "2502"]
[BlackElo "2179"]
[TimeControl "300"]
[EndTime "3:25:55 PDT"]
[Termination "LL220284LL won by checkmate"]

1. Nc3 {[%clk 0:04:57.6]} 1... d5 {[%clk 0:04:56.6]} 2. g3 {[%clk 0:04:57.5]}
2... d4 {[%clk 0:04:53.6]} 3. Nb1 {[%clk 0:04:53.5]} 3... e5 {[%clk 0:04:52.5]}
4. Bg2 {[%clk 0:04:52.5]} 4... Nf6 {[%clk 0:04:51.7]} 5. e3 {[%clk 0:04:50.3]}
5... c5 {[%clk 0:04:50.2]} 6. d3 {[%clk 0:04:47.7]} 6... Nc6 {[%clk 0:04:48.4]}
7. Nf3 {[%clk 0:04:46.1]} 7... Bd6 {[%clk 0:04:45.4]} 8. Nbd2 {[%clk 0:04:43.2]}
8... O-O {[%clk 0:04:44.3]} 9. a3 {[%clk 0:04:40.8]} 9... a5 {[%clk 0:04:42.6]}
10. O-O {[%clk 0:04:37.8]} 10... h6 {[%clk 0:04:39.6]} 11. exd4 {[%clk 0:04:04]}
11... exd4 {[%clk 0:04:37.5]} 12. Nc4 {[%clk 0:03:57.3]} 12... Bc7 {[%clk
0:04:32.4]} 13. Re1 {[%clk 0:03:56.2]} 13... Bg4 {[%clk 0:04:29.2]} 14. h3
{[%clk 0:03:54.2]} 14... Bh5 {[%clk 0:04:26.1]} 15. g4 {[%clk 0:03:46.6]} 15...
Bg6 {[%clk 0:04:24.2]} 16. Nce5 {[%clk 0:03:43.7]} 16... Nxe5 {[%clk 0:04:05.7]}
17. Nxe5 {[%clk 0:03:43.6]} 17... Bh7 {[%clk 0:04:04.7]} 18. Bxb7 {[%clk
0:03:38.5]} 18... Rb8 {[%clk 0:04:02.1]} 19. Bg2 {[%clk 0:03:37.4]} 19... Bxe5
{[%clk 0:03:01.9]} 20. Rxe5 {[%clk 0:03:35.5]} 20... Nd7 {[%clk 0:03:01.2]} 21.
Re1 {[%clk 0:03:31.3]} 21... f5 {[%clk 0:03:00]} 22. b4 {[%clk 0:03:14.3]} 22...
fxg4 {[%clk 0:02:55.8]} 23. Qxg4 {[%clk 0:03:10.3]} 23... axb4 {[%clk
0:02:46.1]} 24. axb4 {[%clk 0:03:06.5]} 24... Rxb4 {[%clk 0:02:45.3]} 25. Ra7
{[%clk 0:03:02.1]} 25... Bf5 {[%clk 0:02:41.3]} 26. Qg3 {[%clk 0:02:58.3]} 26...
Rb1 {[%clk 0:02:29.7]} 27. Kh2 {[%clk 0:02:49.8]} 27... Qf6 {[%clk 0:02:13.8]}
28. Bd2 {[%clk 0:02:35.3]} 28... Rxe1 {[%clk 0:02:11.1]} 29. Bxe1 {[%clk
0:02:35.2]} 29... Ne5 {[%clk 0:02:10]} 30. Rc7 {[%clk 0:02:23.4]} 30... c4
{[%clk 0:01:52.9]} 31. dxc4 {[%clk 0:02:06]} 31... Bxc2 {[%clk 0:01:50.7]} 32.
Rc5 {[%clk 0:01:52.1]} 32... Nf3+ {[%clk 0:01:44.2]} 33. Bxf3 {[%clk 0:01:48.2]}
33... Qxf3 {[%clk 0:01:43.3]} 34. Qxf3 {[%clk 0:01:41]} 34... Rxf3 {[%clk
0:01:42.8]} 35. Rd5 {[%clk 0:01:40.3]} 35... d3 {[%clk 0:01:40.3]} 36. c5 {[%clk
0:01:37.8]} 36... Rf6 {[%clk 0:01:35.3]} 37. Kg3 {[%clk 0:01:31.5]} 37... Kf7
{[%clk 0:01:33.7]} 38. Bc3 {[%clk 0:01:28.5]} 38... Rg6+ {[%clk 0:01:26.9]} 39.
Kf4 {[%clk 0:01:27.3]} 39... Ke7 {[%clk 0:01:23.7]} 40. Ke3 {[%clk 0:01:23.2]}
40... Re6+ {[%clk 0:01:19.8]} 41. Kf4 {[%clk 0:01:12.5]} 41... g6 {[%clk
0:01:16.2]} 42. f3 {[%clk 0:01:04.7]} 42... Rc6 {[%clk 0:01:09.7]} 43. Bb4
{[%clk 0:01:02.1]} 43... Ke6 {[%clk 0:01:02.2]} 44. Re5+ {[%clk 0:00:58.4]}
44... Kf6 {[%clk 0:01:01.5]} 45. Bc3 {[%clk 0:00:50]} 45... Kf7 {[%clk
0:00:57.6]} 46. Rd5 {[%clk 0:00:45.9]} 46... Re6 {[%clk 0:00:52.1]} 47. Bb4
{[%clk 0:00:36.5]} 47... Rc6 {[%clk 0:00:49.8]} 48. Rd7+ {[%clk 0:00:35.2]}
48... Ke6 {[%clk 0:00:47.7]} 49. Rd8 {[%clk 0:00:34.5]} 49... Bb1 {[%clk
0:00:42.1]} 50. Ke3 {[%clk 0:00:33.7]} 50... Bc2 {[%clk 0:00:40]} 51. Kd2 {[%clk
0:00:33]} 51... Bb1 {[%clk 0:00:38.5]} 52. Rh8 {[%clk 0:00:32.5]} 52... h5
{[%clk 0:00:37]} 53. Rg8 {[%clk 0:00:32]} 53... Kf7 {[%clk 0:00:35.5]} 54. Rd8
{[%clk 0:00:31]} 54... Bc2 {[%clk 0:00:34.8]} 55. h4 {[%clk 0:00:30.2]} 55...
Kf6 {[%clk 0:00:33.4]} 56. Bc3+ {[%clk 0:00:28]} 56... Kf5 {[%clk 0:00:32.2]}
57. Rf8+ {[%clk 0:00:27]} 57... Ke6 {[%clk 0:00:30.3]} 58. Rf6+ {[%clk
0:00:25.6]} 58... Kd5 {[%clk 0:00:29.9]} 59. Rf8 {[%clk 0:00:22.2]} 59... Kc4
{[%clk 0:00:29.1]} 60. Rf4+ {[%clk 0:00:20.7]} 60... Kd5 {[%clk 0:00:26.8]} 61.
Rd4+ {[%clk 0:00:19.4]} 61... Ke6 {[%clk 0:00:26.3]} 62. Bb4 {[%clk 0:00:18]}
62... Kf5 {[%clk 0:00:25]} 63. Re4 {[%clk 0:00:16.6]} 63... Rc8 {[%clk
0:00:23.5]} 64. Re7 {[%clk 0:00:15.1]} 64... Ra8 {[%clk 0:00:22.5]} 65. c6
{[%clk 0:00:14.3]} 65... Ra2 {[%clk 0:00:20.4]} 66. c7 {[%clk 0:00:13.2]} 66...
Bb1+ {[%clk 0:00:19.8]} 67. Ke3 {[%clk 0:00:12.3]} 67... Re2+ {[%clk 0:00:18.5]}
68. Kd4 {[%clk 0:00:11.7]} 68... d2 {[%clk 0:00:17.4]} 69. c8=Q+ {[%clk
0:00:10.8]} 69... Kf4 {[%clk 0:00:16.6]} 70. Qf8+ {[%clk 0:00:08.9]} 70... Kg3
{[%clk 0:00:15.7]} 71. Bxd2 {[%clk 0:00:07.8]} 71... Rxd2+ {[%clk 0:00:14.6]}
72. Kc3 {[%clk 0:00:07.7]} 72... Rf2 {[%clk 0:00:13.7]} 73. f4 {[%clk
0:00:06.6]} 73... Bf5 {[%clk 0:00:12.2]} 74. Re3+ {[%clk 0:00:05.6]} 74... Rf3
{[%clk 0:00:12]} 75. Rxf3+ {[%clk 0:00:04.7]} 75... Kxf3 {[%clk 0:00:11.9]} 76.
Kd4 {[%clk 0:00:04.4]} 76... Kg4 {[%clk 0:00:11.8]} 77. Qe7 {[%clk 0:00:03.7]}
77... Kxf4 {[%clk 0:00:11]} 78. Qg5+ {[%clk 0:00:03.6]} 78... Kf3 {[%clk
0:00:09.9]} 79. Qe3+ {[%clk 0:00:03.5]} 79... Kg4 {[%clk 0:00:09]} 80. Ke5
{[%clk 0:00:03.4]} 80... Bb1 {[%clk 0:00:07.6]} 81. Qg5+ {[%clk 0:00:02.5]}
81... Kh3 {[%clk 0:00:06.9]} 82. Qf4 {[%clk 0:00:02.4]} 82... Bf5 {[%clk
0:00:05.9]} 83. Kf6 {[%clk 0:00:01.9]} 83... Bg4 {[%clk 0:00:05.3]} 84. Kg5
{[%clk 0:00:01.8]} 84... Be2 {[%clk 0:00:04.2]} 85. Qe3+ {[%clk 0:00:01.7]}
85... Kg2 {[%clk 0:00:02.4]} 86. Qxe2+ {[%clk 0:00:01.2]} 86... Kg1 {[%clk
0:00:01.9]} 87. Kf4 {[%clk 0:00:01.1]} 87... Kh1 {[%clk 0:00:01.5]} 88. Kg3
{[%clk 0:00:01]} 88... Kg1 {[%clk 0:00:01.4]} 89. Qg2# {[%clk 0:00:00.8]} 1-0

[Event "Live Chess"]
[Site "Chess.com"]
[Date "2024.06.02"]
[Round "-"]
[White "KeithArkell"]
[Black "ogpin"]
[Result "1-0"]
[WhiteElo "2410"]
[BlackElo "2195"]
[TimeControl "300"]
[EndTime "3:26:36 PDT"]
[Termination "KeithArkell won by resignation"]

1. d4 {[%clk 0:04:57.9]} 1... a5 {[%clk 0:04:59.8]} 2. Nf3 {[%clk 0:04:56.8]}
2... Ra6 {[%clk 0:04:59.7]} 3. e4 {[%clk 0:04:56.4]} 3... g6 {[%clk 0:04:57.3]}
4. Bxa6 {[%clk 0:04:54.8]} 4... Nxa6 {[%clk 0:04:57.2]} 5. Nc3 {[%clk
0:04:53.7]} 5... b6 {[%clk 0:04:56.8]} 6. d5 {[%clk 0:04:52.2]} 6... Bb7 {[%clk
0:04:55]} 7. Be3 {[%clk 0:04:51.3]} 7... Bg7 {[%clk 0:04:54.1]} 8. Bd4 {[%clk
0:04:50.6]} 8... Nf6 {[%clk 0:04:45.1]} 9. O-O {[%clk 0:04:49]} 9... O-O {[%clk
0:04:40.1]} 10. Re1 {[%clk 0:04:42.4]} 10... e6 {[%clk 0:04:39.4]} 11. a3 {[%clk
0:04:37.8]} 11... Qa8 {[%clk 0:04:31]} 12. Qd2 {[%clk 0:04:26.7]} 12... Nc5
{[%clk 0:04:10.9]} 13. b4 {[%clk 0:04:18.3]} 13... Na6 {[%clk 0:03:57.5]} 14.
Rab1 {[%clk 0:04:16.2]} 14... axb4 {[%clk 0:03:49.1]} 15. axb4 {[%clk 0:04:15]}
15... c5 {[%clk 0:03:21.6]} 16. bxc5 {[%clk 0:04:08.8]} 16... bxc5 {[%clk
0:03:20.4]} 17. Be5 {[%clk 0:04:04.6]} 17... Nb4 {[%clk 0:03:06.4]} 18. Ra1
{[%clk 0:03:13.9]} 18... Qc8 {[%clk 0:03:02.6]} 19. Ra5 {[%clk 0:03:10.3]} 19...
exd5 {[%clk 0:02:48.1]} 20. exd5 {[%clk 0:02:47.7]} 20... Nbxd5 {[%clk
0:02:13.8]} 21. Nxd5 {[%clk 0:02:08.9]} 21... Nxd5 {[%clk 0:02:13.7]} 22. Bxg7
{[%clk 0:02:05.5]} 22... Kxg7 {[%clk 0:02:13.6]} 23. Re5 {[%clk 0:02:00.7]}
23... Qc6 {[%clk 0:02:03.2]} 24. c4 {[%clk 0:01:55.3]} 24... Nf6 {[%clk
0:01:36.4]} 25. Rexc5 {[%clk 0:01:53.2]} 25... Qe4 {[%clk 0:01:31.9]} 26. Qb2
{[%clk 0:01:45.1]} 26... Qg4 {[%clk 0:01:26]} 27. Qxb7 {[%clk 0:01:42.4]} 27...
Re8 {[%clk 0:01:20.4]} 28. h3 {[%clk 0:01:38.2]} 28... Qf4 {[%clk 0:01:17.5]}
29. Qb2 {[%clk 0:01:31.8]} 29... Kg8 {[%clk 0:01:13.3]} 30. Re5 {[%clk 0:01:27]}
30... Rc8 {[%clk 0:01:04.5]} 31. c5 {[%clk 0:01:12.4]} 31... Ne4 {[%clk
0:01:01.4]} 32. Ra4 {[%clk 0:01:00.9]} 32... f5 {[%clk 0:01:00.6]} 33. Rd5
{[%clk 0:00:54.9]} 33... Nxc5 {[%clk 0:00:35.9]} 34. Rxf4 {[%clk 0:00:52.8]}
34... Na4 {[%clk 0:00:33.2]} 35. Qa3 {[%clk 0:00:49.5]} 1-0

[Event "Live Chess"]
[Site "Chess.com"]
[Date "2024.06.02"]
[Round "-"]
[White "ameetghasi100"]
[Black "Mikhail_Golubev"]
[Result "1-0"]
[WhiteElo "2776"]
[BlackElo "2512"]
[TimeControl "300"]
[EndTime "3:26:45 PDT"]
[Termination "ameetghasi100 won on time"]

1. c4 {[%clk 0:04:58.6]} 1... g6 {[%clk 0:04:58.4]} 2. Nf3 {[%clk 0:04:58.5]}
2... Bg7 {[%clk 0:04:56.6]} 3. d4 {[%clk 0:04:58.4]} 3... d6 {[%clk 0:04:55.3]}
4. Nc3 {[%clk 0:04:58]} 4... Nf6 {[%clk 0:04:53.7]} 5. e3 {[%clk 0:04:57.5]}
5... O-O {[%clk 0:04:52.1]} 6. Be2 {[%clk 0:04:57.4]} 6... Bd7 {[%clk 0:04:51]}
7. O-O {[%clk 0:04:57.3]} 7... Re8 {[%clk 0:04:44.8]} 8. b4 {[%clk 0:04:54.3]}
8... e5 {[%clk 0:04:42.2]} 9. dxe5 {[%clk 0:04:50.9]} 9... dxe5 {[%clk
0:04:42.1]} 10. Bb2 {[%clk 0:04:49.9]} 10... e4 {[%clk 0:04:23.8]} 11. Nd4
{[%clk 0:04:47.3]} 11... Na6 {[%clk 0:04:20.3]} 12. b5 {[%clk 0:04:25]} 12...
Nc5 {[%clk 0:04:15.7]} 13. a4 {[%clk 0:04:23.1]} 13... h5 {[%clk 0:03:04.3]} 14.
a5 {[%clk 0:04:16.4]} 14... Ng4 {[%clk 0:02:55.7]} 15. h3 {[%clk 0:04:14]} 15...
Ne5 {[%clk 0:02:53.4]} 16. Ba3 {[%clk 0:04:08.5]} 16... Ned3 {[%clk 0:01:41.1]}
17. Nxe4 {[%clk 0:04:02.7]} 17... Nxe4 {[%clk 0:00:36.3]} 18. Bxd3 {[%clk
0:03:48.8]} 18... Bxh3 {[%clk 0:00:34.7]} 19. gxh3 {[%clk 0:03:33.7]} 19... Qg5+
{[%clk 0:00:19.4]} 20. Kh1 {[%clk 0:03:29.5]} 20... Rad8 {[%clk 0:00:19]} 21.
Qf3 {[%clk 0:03:27.2]} 21... Nd2 {[%clk 0:00:15.8]} 22. Qg2 {[%clk 0:03:20.1]}
22... Qxg2+ {[%clk 0:00:14.5]} 23. Kxg2 {[%clk 0:03:19.6]} 23... Bxd4 {[%clk
0:00:14]} 24. exd4 {[%clk 0:03:17.9]} 24... Rxd4 {[%clk 0:00:13.5]} 25. Bc2
{[%clk 0:03:09.6]} 25... Nxf1 {[%clk 0:00:11.4]} 26. Kxf1 {[%clk 0:03:06.5]}
26... Rxc4 {[%clk 0:00:11.1]} 27. Bd1 {[%clk 0:02:53.9]} 27... Rc3 {[%clk
0:00:11]} 28. Bb2 {[%clk 0:02:31.8]} 28... Rxh3 {[%clk 0:00:08.4]} 29. Kg2
{[%clk 0:02:31.3]} 29... Rd3 {[%clk 0:00:08.1]} 30. Bf3 {[%clk 0:02:07.5]} 30...
Rb3 {[%clk 0:00:07.1]} 31. Bd4 {[%clk 0:01:59.3]} 31... Rxb5 {[%clk 0:00:06]}
32. Rc1 {[%clk 0:01:58.8]} 32... Rd8 {[%clk 0:00:04.3]} 33. Be3 {[%clk
0:01:56.4]} 33... c6 {[%clk 0:00:04]} 34. a6 {[%clk 0:01:55.4]} 34... bxa6
{[%clk 0:00:02.4]} 35. Rxc6 {[%clk 0:01:54.7]} 1-0

[Event "Live Chess"]
[Site "Chess.com"]
[Date "2024.06.02"]
[Round "-"]
[White "Purple1szed"]
[Black "80Times"]
[Result "0-1"]
[WhiteElo "2048"]
[BlackElo "1904"]
[TimeControl "300"]
[EndTime "3:26:48 PDT"]
[Termination "80Times won by resignation"]

1. e4 {[%clk 0:04:59]} 1... g6 {[%clk 0:04:57.1]} 2. d4 {[%clk 0:04:57.9]} 2...
d6 {[%clk 0:04:56.1]} 3. Nf3 {[%clk 0:04:57.8]} 3... c6 {[%clk 0:04:55.5]} 4.
Be3 {[%clk 0:04:57.7]} 4... Bg7 {[%clk 0:04:54.6]} 5. Qd2 {[%clk 0:04:57.6]}
5... Nd7 {[%clk 0:04:53.4]} 6. Nc3 {[%clk 0:04:57.5]} 6... h6 {[%clk 0:04:51.5]}
7. O-O-O {[%clk 0:04:57.1]} 7... b5 {[%clk 0:04:51.1]} 8. h4 {[%clk 0:04:56.7]}
8... b4 {[%clk 0:04:50.2]} 9. Ne2 {[%clk 0:04:55.9]} 9... Qa5 {[%clk 0:04:47.8]}
10. Kb1 {[%clk 0:04:54.1]} 10... Ngf6 {[%clk 0:04:47.3]} 11. e5 {[%clk
0:04:49.9]} 11... Ne4 {[%clk 0:04:46.2]} 12. Qd3 {[%clk 0:04:47.3]} 12... d5
{[%clk 0:04:41.5]} 13. g4 {[%clk 0:04:31.3]} 13... Ba6 {[%clk 0:04:40]} 14. Qb3
{[%clk 0:04:23.7]} 14... Bc4 {[%clk 0:04:38.5]} 15. Bg2 {[%clk 0:04:16]} 15...
Bxb3 {[%clk 0:04:37.3]} 16. axb3 {[%clk 0:04:15.3]} 16... e6 {[%clk 0:04:32.7]}
17. Nf4 {[%clk 0:04:10.5]} 17... Qb5 {[%clk 0:04:28.4]} 18. Bf1 {[%clk
0:04:07.1]} 18... Qb6 {[%clk 0:04:26.9]} 19. Bd3 {[%clk 0:04:00.4]} 19... a5
{[%clk 0:04:24.9]} 20. g5 {[%clk 0:03:57.9]} 20... a4 {[%clk 0:04:22.3]} 21.
gxh6 {[%clk 0:03:53.9]} 21... Bxh6 {[%clk 0:04:21]} 22. h5 {[%clk 0:03:46.2]}
22... g5 {[%clk 0:04:18.9]} 23. Ne2 {[%clk 0:03:40]} 23... axb3 {[%clk
0:04:10.3]} 24. cxb3 {[%clk 0:03:39.9]} 24... Qa5 {[%clk 0:04:08.9]} 25. Bxe4
{[%clk 0:03:33]} 25... dxe4 {[%clk 0:04:07.2]} 26. Nxg5 {[%clk 0:03:32.9]} 26...
Qa2+ {[%clk 0:04:05.2]} 27. Kc2 {[%clk 0:03:32.1]} 27... Bxg5 {[%clk 0:03:55.4]}
28. Bxg5 {[%clk 0:03:32]} 28... c5 {[%clk 0:03:49.8]} 29. Ng3 {[%clk 0:03:08.6]}
29... c4 {[%clk 0:03:48.2]} 30. Nxe4 {[%clk 0:03:03.4]} 30... Qxb3+ {[%clk
0:03:46.8]} 31. Kd2 {[%clk 0:03:02.8]} 31... Ra2 {[%clk 0:03:40.3]} 32. Nd6+
{[%clk 0:03:00.6]} 32... Kf8 {[%clk 0:03:38.4]} 33. Ke1 {[%clk 0:02:49.5]} 33...
Qxb2 {[%clk 0:03:32]} 34. Rd2 {[%clk 0:02:48.8]} 34... Qb1+ {[%clk 0:03:27.4]}
35. Ke2 {[%clk 0:02:48.7]} 35... Qd3+ {[%clk 0:03:25.3]} 0-1

[Event "Live Chess"]
[Site "Chess.com"]
[Date "2024.06.02"]
[Round "-"]
[White "GerardATHart"]
[Black "Queensandpawns"]
[Result "0-1"]
[WhiteElo "1368"]
[BlackElo "2240"]
[TimeControl "300"]
[EndTime "3:26:50 PDT"]
[Termination "Queensandpawns won by checkmate"]

1. e4 {[%clk 0:04:55.2]} 1... e5 {[%clk 0:04:59.9]} 2. Nf3 {[%clk 0:04:53.5]}
2... d5 {[%clk 0:04:59.8]} 3. exd5 {[%clk 0:04:41.1]} 3... e4 {[%clk 0:04:59.7]}
4. Nd4 {[%clk 0:04:39.5]} 4... Qxd5 {[%clk 0:04:56.9]} 5. Nb3 {[%clk 0:04:38]}
5... Nf6 {[%clk 0:04:55.3]} 6. Nc3 {[%clk 0:04:36.1]} 6... Qe5 {[%clk
0:04:51.7]} 7. Be2 {[%clk 0:04:29.6]} 7... c6 {[%clk 0:04:49.2]} 8. h3 {[%clk
0:04:28]} 8... h5 {[%clk 0:04:48.1]} 9. O-O {[%clk 0:04:26.1]} 9... Bd6 {[%clk
0:04:45.1]} 10. f4 {[%clk 0:04:23.4]} 10... exf3 {[%clk 0:04:43.8]} 11. Bxf3
{[%clk 0:04:12.1]} 11... Qh2+ {[%clk 0:04:43.7]} 12. Kf2 {[%clk 0:04:10.4]}
12... O-O {[%clk 0:04:34.5]} 13. d4 {[%clk 0:04:04.6]} 13... Qg3+ {[%clk
0:04:32.3]} 14. Kg1 {[%clk 0:04:02.9]} 14... Bxh3 {[%clk 0:04:30.2]} 15. Be3
{[%clk 0:03:42.3]} 15... Ng4 {[%clk 0:04:24.3]} 16. Qd2 {[%clk 0:03:32.2]} 16...
Qh2# {[%clk 0:04:22.3]} 0-1